bitfinex/quotes_BTCUSD_20250723
["timestamp","ask_amount","ask_price","bid_price","bid_amount"]
[1753271692976,0.02726592,118640.0,118630.0,0.65649045]
[1753271694405,0.19584312,118640.0,118630.0,0.52745045]
[1753271694625,0.2042719,118640.0,118630.0,0.65645045]
[1753271700444,0.2042719,118640.0,118630.0,0.63959224]
[1753271700667,0.2042719,118640.0,118630.0,0.64802138]
[1753271701190,0.21270076,118640.0,118630.0,0.64802138]
[1753271702736,0.20427219,118640.0,118630.0,0.63959224]
[1753271702954,0.19584355,118640.0,118630.0,0.63116303]
[1753271703175,0.19584355,118640.0,118630.0,0.63959238]
[1753271703395,0.19584355,118640.0,118630.0,0.64802166]
[1753271703618,0.19584355,118640.0,118630.0,0.52745087]
[1753271703819,0.19584355,118640.0,118630.0,0.64802166]
[1753271704034,0.19584355,118640.0,118630.0,0.65645087]
[1753271705193,0.19584355,118640.0,118630.0,0.32825386]
[1753271705408,0.19584355,118640.0,118630.0,0.64802166]
[1753271706663,0.19584355,118640.0,118630.0,0.63959238]
[1753271707594,0.19584355,118640.0,118630.0,0.64802166]
[1753271707799,0.19584355,118640.0,118630.0,0.63959238]
[1753271708497,0.18741484,118640.0,118630.0,0.62277674]
[1753271708719,0.27189214,118640.0,118630.0,0.45418533]
[1753271708932,0.2550345,118640.0,118630.0,0.45209533]
[1753271709364,0.2809345,118640.0,118630.0,0.44891533]
[1753271711709,0.2550345,118640.0,118630.0,0.44891533]
[1753271711938,0.2550345,118640.0,118630.0,0.4689119]
[1753271712162,0.2550345,118640.0,118630.0,0.46247241]
[1753271712374,0.2550345,118640.0,118630.0,0.63106382]
[1753271712592,0.2550345,118640.0,118630.0,0.64792273]
[1753271712829,0.2530545,118640.0,118630.0,0.63949331]
[1753271713046,0.2530545,118640.0,118630.0,0.64792273]
[1753271713315,0.2530545,118640.0,118630.0,0.63949331]
[1753271713753,0.26991171,118640.0,118630.0,0.65635201]
[1753271713967,0.26991171,118640.0,118630.0,0.65635208]
[1753271714179,0.26991171,118640.0,118630.0,0.68005208]
[1753271714620,0.27834057,118640.0,118630.0,0.68848136]
[1753271714805,0.27834057,118640.0,118630.0,0.68005179]
[1753271715010,0.27834057,118640.0,118630.0,0.67162251]
[1753271715227,0.27834057,118640.0,118630.0,0.68005179]
[1753271715447,0.27834057,118640.0,118630.0,0.67162251]
[1753271715661,0.27834057,118640.0,118630.0,0.68005179]
[1753271716318,0.27834057,118640.0,118630.0,0.66319316]
[1753271716516,0.27834057,118640.0,118630.0,0.67162251]
[1753271717344,0.26991171,118640.0,118630.0,0.67162251]
[1753271717605,0.26991171,118640.0,118630.0,0.68005172]
[1753271717821,0.27834057,118640.0,118630.0,0.68005172]
[1753271718036,0.27834057,118640.0,118630.0,0.67162251]
[1753271718247,0.27834057,118640.0,118630.0,0.68005179]
[1753271718508,0.27834057,118640.0,118630.0,0.688481]
[1753271718745,0.27834057,118640.0,118630.0,0.68005179]
[1753271718968,0.27834057,118640.0,118630.0,0.66319316]
[1753271719405,0.26991171,118640.0,118630.0,0.67162251]
[1753271719626,0.27834057,118640.0,118630.0,0.66319316]
[1753271719842,0.26991171,118640.0,118630.0,0.67162251]
[1753271720776,0.27834057,118640.0,118630.0,0.66319316]
[1753271720897,0.27834049,118640.0,118630.0,0.67162251]
[1753271721150,0.27833993,118640.0,118630.0,0.68005179]
[1753271721405,0.27833993,118640.0,118630.0,0.67162251]
[1753271721582,0.27833993,118640.0,118630.0,0.65476374]
[1753271721799,0.28676879,118640.0,118630.0,0.66319316]
[1753271722010,0.28676871,118640.0,118630.0,0.67162251]
[1753271722267,0.29519757,118640.0,118630.0,0.65476374]
[1753271722447,0.29519757,118640.0,118630.0,0.66319316]
[1753271722981,0.28676871,118640.0,118630.0,0.66319316]
[1753271723195,0.27833993,118640.0,118630.0,0.67162251]
[1753271723420,0.28676871,118640.0,118630.0,0.66319316]
[1753271723883,0.28676871,118640.0,118630.0,0.65476374]
[1753271724078,0.28676871,118640.0,118630.0,0.66319316]
[1753271724521,0.28676864,118640.0,118630.0,0.66319316]
[1753271724997,0.27833993,118640.0,118630.0,0.67162244]
[1753271725246,0.27833993,118640.0,118630.0,0.67162251]
[1753271725660,0.27833993,118640.0,118630.0,0.68005179]
[1753271725925,0.27833993,118640.0,118630.0,0.67162251]
[1753271726272,0.27833993,118640.0,118630.0,0.66319316]
[1753271726503,0.27833993,118640.0,118630.0,0.67162251]
[1753271727110,0.27833993,118640.0,118630.0,0.66319316]
[1753271727615,0.27833993,118640.0,118630.0,0.67162251]
[1753271728573,0.26991129,118640.0,118630.0,0.68005179]
[1753271728857,0.26991129,118640.0,118630.0,0.688481]
[1753271729081,0.26148286,118640.0,118630.0,0.70605123]
[1753271729576,0.26148286,118640.0,118630.0,0.7144803]
[1753271729827,0.26148286,118640.0,118630.0,0.70605123]
[1753271730281,0.26991136,118640.0,118630.0,0.70605123]
[1753271730549,0.26991136,118640.0,118630.0,0.69762209]
[1753271730779,0.26991136,118640.0,118630.0,0.68919317]
[1753271731021,0.27834,118640.0,118630.0,0.69762245]
[1753271731263,0.26991136,118640.0,118630.0,0.69762245]
[1753271731502,0.27834,118640.0,118630.0,0.68919317]
[1753271731745,0.27834,118640.0,118630.0,0.69762245]
[1753271732599,0.26991136,118640.0,118630.0,0.70605166]
[1753271732933,0.26991136,118640.0,118630.0,0.36942537]
[1753271733156,0.27834,118640.0,118630.0,0.69762245]
[1753271733385,0.27833993,118640.0,118630.0,0.69762245]
[1753271733933,0.28676864,118640.0,118630.0,0.68076382]
[1753271734210,0.28676864,118640.0,118630.0,0.66319317]
[1753271734430,0.27833993,118640.0,118630.0,0.66319317]
[1753271735102,0.28676864,118640.0,118630.0,0.66319317]
[1753271735520,0.28676864,118640.0,118630.0,0.33499602]
[1753271735724,0.28676864,118640.0,118630.0,0.67162273]
[1753271736645,0.28676864,118640.0,118630.0,0.68005208]
[1753271737096,0.28676864,118640.0,118630.0,0.66319331]
[1753271737289,0.28676864,118640.0,118630.0,0.67162273]
[1753271737521,0.28676864,118640.0,118630.0,0.66319331]
[1753271737709,0.2951975,118640.0,118630.0,0.65476382]
[1753271737969,0.28676864,118640.0,118630.0,0.66319331]
[1753271738189,0.28676864,118640.0,118630.0,0.67162273]
[1753271738629,0.28676864,118640.0,118630.0,0.66319331]
[1753271739081,0.28676864,118640.0,118630.0,0.67162273]
[1753271739941,0.28676864,118640.0,118630.0,0.68005208]
[1753271740150,0.28676864,118640.0,118630.0,0.66319331]
[1753271740357,0.28676864,118640.0,118630.0,0.68005208]
[1753271740804,0.28676864,118640.0,118630.0,0.67162273]
[1753271741007,0.28676864,118640.0,118630.0,0.68005208]
[1753271742350,0.27833993,118640.0,118630.0,0.68843884]
[1753271742574,0.26991136,118640.0,118630.0,0.68843813]
[1753271742781,0.26991136,118640.0,118630.0,0.68000899]
[1753271743014,0.26991136,118640.0,118630.0,0.6631505]
[1753271743213,0.27833993,118640.0,118630.0,0.67157978]
[1753271744828,0.26148286,118640.0,118630.0,0.67157978]
[1753271745027,0.2530545,118640.0,118630.0,0.68000885]
[1753271745233,0.26148286,118640.0,118630.0,0.70500885]
[1753271747073,0.0844773,118640.0,118630.0,0.78948615]
[1753271747327,0.642263,118650.0,118640.0,0.24196291]
[1753271747328,0.45842758,118650.0,118640.0,0.24196291]
[1753271747560,0.18540366,118660.0,118650.0,0.05652815]
[1753271747744,0.89383102,118660.0,118650.0,0.99410667]
[1753271748020,0.48540366,118660.0,118650.0,1.01630232]
[1753271748274,0.49383102,118660.0,118650.0,1.0078746]
[1753271748897,0.32628173,118660.0,118650.0,1.01630218]
[1753271749830,0.32628173,118660.0,118650.0,0.36833893]
[1753271750047,0.49298778,118660.0,118650.0,1.01630232]
[1753271750260,0.49298778,118660.0,118650.0,1.10077962]
[1753271750478,0.49398778,118660.0,118650.0,1.08392397]
[1753271750697,0.49398778,118660.0,118650.0,1.1007799]
[1753271751350,0.4855607,118660.0,118650.0,0.99944667]
[1753271751537,0.47797615,118660.0,118650.0,0.80678367]
[1753271751941,0.47797615,118660.0,118650.0,0.80678375]
[1753271752346,0.47797615,118660.0,118650.0,0.81521182]
[1753271752557,0.47797615,118660.0,118650.0,0.80678375]
[1753271753659,0.47797615,118660.0,118650.0,0.81521182]
[1753271754576,0.47797615,118660.0,118650.0,0.80678375]
[1753271754987,0.47797615,118660.0,118650.0,0.7983556]
[1753271755217,0.46954879,118660.0,118650.0,0.7983556]
[1753271761896,0.46954879,118660.0,118650.0,0.97534675]
[1753271762454,0.46954879,118660.0,118650.0,0.98377482]
[1753271762699,0.46954879,118660.0,118650.0,0.99220282]
[1753271762886,0.46954879,118660.0,118650.0,1.02523061]
[1753271763195,0.48640344,118660.0,118650.0,1.03365861]
[1753271763857,0.48640344,118660.0,118650.0,1.02523075]
[1753271764281,0.48640344,118660.0,118650.0,1.01680282]
[1753271764489,0.47797622,118660.0,118650.0,0.83106375]
[1753271764724,0.46954879,118660.0,118650.0,0.83106375]
[1753271764934,0.46954879,118660.0,118650.0,0.8226356]
[1753271765941,0.46954879,118660.0,118650.0,0.9911986]
[1753271766357,0.46954879,118660.0,118650.0,0.8226356]
[1753271766823,0.46954879,118660.0,118650.0,0.1585]
[1753271767009,0.46954879,118660.0,118650.0,0.7980356]
[1753271769290,0.46954879,118660.0,118650.0,1.05034169]
[1753271769519,0.48640344,118660.0,118650.0,1.09279748]
[1753271769748,0.48640344,118660.0,118650.0,1.09069748]
[1753271770176,0.48640344,118660.0,118650.0,1.08226969]
[1753271770392,0.48640344,118660.0,118650.0,1.09069762]
[1753271770620,0.48640344,118660.0,118650.0,1.0153826]
[1753271772890,0.47797622,118660.0,118650.0,0.99852667]
[1753271773281,0.47797622,118660.0,118650.0,0.97502667]
[1753271773878,0.47797622,118660.0,118650.0,0.98345453]
[1753271774408,0.47797622,118660.0,118650.0,1.00945453]
[1753271774611,0.47797622,118660.0,118650.0,1.01788232]
[1753271774861,0.48640344,118660.0,118650.0,1.02630997]
[1753271775457,0.301,118660.0,118650.0,0.98162727]
[1753271775681,0.301,118660.0,118650.0,1.02614997]
[1753271776113,0.3094268,118660.0,118650.0,1.02614997]
[1753271776322,0.301,118660.0,118650.0,1.02614997]
[1753271777903,0.30942687,118660.0,118650.0,1.02614997]
[1753271778365,0.31785388,118660.0,118650.0,1.02614997]
[1753271778587,0.32628103,118660.0,118650.0,1.02614997]
[1753271779086,0.33470832,118660.0,118650.0,0.89714997]
[1753271779274,0.48838323,118660.0,118650.0,0.95082675]
[1753271779533,0.87995608,118660.0,118650.0,0.95078431]
[1753271779741,1.02152879,118660.0,118650.0,0.95078431]
[1753271780511,1.02152879,118660.0,118650.0,0.95917238]
[1753271782841,1.02152879,118660.0,118650.0,0.95074431]
[1753271783169,1.04532879,118660.0,118650.0,0.6395356]
[1753271783415,1.04532879,118660.0,118650.0,0.7684556]
[1753271783416,1.07072879,118660.0,118650.0,0.7684556]
[1753271784930,1.04532879,118660.0,118650.0,0.7684556]
[1753271785133,1.02152879,118660.0,118650.0,0.7684556]
[1753271786686,1.02152879,118660.0,118650.0,0.12892]
[1753271787076,1.02152879,118660.0,118650.0,0.7684556]
[1753271788159,0.17699107,118650.0,118640.0,0.50255606]
[1753271788376,0.17897107,118650.0,118640.0,0.7506378]
[1753271789020,0.17897107,118650.0,118640.0,0.7527678]
[1753271790138,0.17897107,118650.0,118640.0,0.6238478]
[1753271790352,0.17897107,118650.0,118640.0,0.2989]
[1753271790571,0.28804837,118650.0,118640.0,0.7475878]
[1753271790783,0.31394837,118650.0,118640.0,0.7475878]
[1753271792068,0.31394837,118650.0,118640.0,0.4486878]
[1753271794401,0.28804837,118650.0,118640.0,0.4486878]
[1753271794626,0.66344837,118650.0,118640.0,0.4486878]
[1753271794847,0.66344837,118650.0,118640.0,0.4519378]
[1753271795038,0.66344837,118650.0,118640.0,0.4540678]
[1753271798209,0.66344837,118650.0,118640.0,0.12892]
[1753271798436,0.66344837,118650.0,118640.0,0.4486878]
[1753271799401,0.68714837,118650.0,118640.0,0.4486878]
[1753271802343,0.66344837,118650.0,118640.0,0.4486878]
[1753271805998,0.66344837,118650.0,118640.0,0.44864533]
[1753271809667,0.26344837,118650.0,118640.0,0.44864533]
[1753271809878,0.26344837,118650.0,118640.0,0.45189533]
[1753271813726,0.26344837,118650.0,118640.0,0.45402533]
[1753271816139,0.41344837,118650.0,118640.0,0.45402533]
[1753271817401,0.81344837,118650.0,118640.0,0.45402533]
[1753271819758,0.81344837,118650.0,118640.0,0.47852533]
[1753271820915,0.81344837,118650.0,118640.0,0.45402533]
[1753271823190,0.81146837,118650.0,118640.0,0.65533131]
[1753271824410,0.66989623,118650.0,118640.0,0.98352768]
[1753271824639,0.26989623,118650.0,118640.0,1.00602768]
[1753271824981,0.66989623,118650.0,118640.0,1.00602768]
[1753271825195,0.66989623,118650.0,118640.0,1.01445618]
[1753271826135,0.61854879,118660.0,118640.0,1.01445618]
[1753271826366,0.71145352,118660.0,118650.0,1.00173468]
[1753271826565,0.71145352,118660.0,118650.0,1.00673468]
[1753271826772,1.11145352,118660.0,118650.0,1.00673468]
[1753271827874,1.11145352,118660.0,118650.0,1.01516282]
[1753271828098,1.10402609,118660.0,118650.0,1.00673482]
[1753271828330,1.10402609,118660.0,118650.0,0.99830675]
[1753271829514,1.10402609,118660.0,118650.0,0.8213156]
[1753271829941,1.10402609,118660.0,118650.0,0.9898786]
[1753271830460,0.70402609,118660.0,118650.0,0.9898786]
[1753271830659,0.70402609,118660.0,118650.0,0.99830667]
[1753271832963,0.70402609,118660.0,118650.0,0.99830675]
[1753271833592,0.70402609,118660.0,118650.0,0.8213156]
[1753271835065,0.70402609,118660.0,118650.0,0.9898786]
[1753271835842,0.70402609,118660.0,118650.0,0.8213156]
[1753271838581,0.70402609,118660.0,118650.0,0.7977156]
[1753271842949,0.70402609,118660.0,118650.0,0.79767314]
[1753271844934,1.10402609,118660.0,118650.0,0.79767314]
[1753271848629,1.10402609,118660.0,118650.0,0.15813754]
[1753271848852,1.10402609,118660.0,118650.0,0.79767314]
[1753271849209,0.70402609,118660.0,118650.0,0.79767314]
[1753271850624,0.70600609,118660.0,118650.0,0.7704756]
[1753271851545,0.18541893,118650.0,118640.0,0.0224]
[1753271851755,0.63543434,118640.0,118630.0,0.53239284]
[1753271851961,0.63543434,118640.0,118630.0,0.66322284]
[1753271852380,0.62700591,118640.0,118630.0,0.64636393]
[1753271852581,0.62700591,118640.0,118630.0,0.65479342]
[1753271853015,0.62700591,118640.0,118630.0,0.98299057]
[1753271853226,0.62700591,118640.0,118630.0,0.9523613]
[1753271853442,0.62700591,118640.0,118630.0,0.96079079]
[1753271853644,0.62700591,118640.0,118630.0,0.99282014]
[1753271853967,0.62700591,118640.0,118630.0,1.00224942]
[1753271854524,0.62700591,118640.0,118630.0,1.00324942]
[1753271856391,0.62700591,118640.0,118630.0,0.99482014]
[1753271857063,0.62700591,118640.0,118630.0,0.69592014]
[1753271858908,0.62700591,118640.0,118630.0,0.70434942]
[1753271860283,0.62700591,118640.0,118630.0,0.69592014]
[1753271860452,0.62700591,118640.0,118630.0,0.68749079]
[1753271862053,0.62700591,118640.0,118630.0,0.69592021]
[1753271862311,0.62700591,118640.0,118630.0,0.71277884]
[1753271862533,0.62700591,118640.0,118630.0,0.71277813]
[1753271862850,0.62700591,118640.0,118630.0,0.67906115]
[1753271862971,0.62700591,118640.0,118630.0,0.6790613]
[1753271863884,0.6185772,118640.0,118630.0,0.50204032]
[1753271864289,0.6185772,118640.0,118630.0,0.47844032]
[1753271868553,0.6205672,118640.0,118630.0,0.45574032]
[1753271869259,0.6185772,118640.0,118630.0,0.45574032]
[1753271869500,0.6205572,118640.0,118630.0,0.32183032]
[1753271869742,0.7050345,118640.0,118630.0,0.45067032]
[1753271870225,0.7050345,118640.0,118630.0,0.45266032]
[1753271870449,0.7030545,118640.0,118630.0,0.47874032]
[1753271870684,0.7030545,118640.0,118630.0,0.34990032]
[1753271870918,0.7030545,118640.0,118630.0,0.15893252]
[1753271871112,0.7030545,118640.0,118630.0,0.47870032]
[1753271871324,0.7030545,118640.0,118630.0,0.47770032]
[1753271871969,0.7030545,118640.0,118630.0,0.47670032]
[1753271877365,0.7030545,118640.0,118630.0,0.47620032]
[1753271878241,0.7030545,118640.0,118630.0,0.47615788]
[1753271878650,0.7030545,118640.0,118630.0,0.15639008]
[1753271878889,0.7030545,118640.0,118630.0,0.47615788]
[1753271879247,0.7030545,118640.0,118630.0,0.65317878]
[1753271879496,0.7030545,118640.0,118630.0,0.6616082]
[1753271879925,0.7030545,118640.0,118630.0,0.64474929]
[1753271880271,0.7030545,118640.0,118630.0,0.65317886]
[1753271882259,0.7030545,118640.0,118630.0,0.66160835]
[1753271882705,0.71148328,118640.0,118630.0,0.67003777]
[1753271882926,0.46685693,118640.0,118630.0,0.70999612]
[1753271883151,0.3,118640.0,118630.0,1.11424122]
[1753271884576,0.15,118650.0,118640.0,0.24837034]
[1753271884782,0.0337059,118670.0,118660.0,0.02528145]
[1753271884995,0.3168526,118670.0,118660.0,0.99016584]
[1753271885199,0.30842623,118670.0,118660.0,0.69309804]
[1753271885403,0.3,118670.0,118660.0,0.69309804]
[1753271885609,0.30842609,118670.0,118660.0,1.01286584]
[1753271885799,0.31685232,118670.0,118660.0,0.69309804]
[1753271886152,0.32527869,118670.0,118660.0,0.69309804]
[1753271886371,0.33370513,118670.0,118660.0,0.69309804]
[1753271886592,0.34213164,118670.0,118660.0,0.69309811]
[1753271886805,0.51066623,118670.0,118660.0,0.69309811]
[1753271887463,0.51066679,118670.0,118660.0,0.68467117]
[1753271887683,0.51066679,118670.0,118660.0,0.69309832]
[1753271887932,0.51066672,118670.0,118660.0,0.68467117]
[1753271888112,0.51066672,118670.0,118660.0,0.69309832]
[1753271888291,0.90324014,118670.0,118660.0,0.7015254]
[1753271888515,0.90324014,118670.0,118660.0,0.69309832]
[1753271889339,0.90324014,118670.0,118660.0,0.65744526]
[1753271889777,0.91166679,118670.0,118660.0,0.65744526]
[1753271890288,0.90324014,118670.0,118660.0,0.65744526]
[1753271890479,0.89481363,118670.0,118660.0,0.65744526]
[1753271890708,0.90324021,118670.0,118660.0,0.66587234]
[1753271891137,0.89481363,118670.0,118660.0,0.66587234]
[1753271891345,0.90324021,118670.0,118660.0,0.65744526]
[1753271891563,0.91166693,118670.0,118660.0,0.64059089]
[1753271891784,0.89481433,118670.0,118660.0,0.46361474]
[1753271892661,0.89481433,118670.0,118660.0,0.47204217]
[1753271893253,0.89481433,118670.0,118660.0,0.46361474]
[1753271893482,0.89481433,118670.0,118660.0,0.47204217]
[1753271893835,0.89481433,118670.0,118660.0,0.4720421]
[1753271894258,0.89481433,118670.0,118660.0,0.47204217]
[1753271895125,0.89481433,118670.0,118660.0,0.46361474]
[1753271895442,0.88638789,118670.0,118660.0,0.46357474]
[1753271898290,0.88638789,118670.0,118660.0,0.47200217]
[1753271898510,0.88638789,118670.0,118660.0,0.46357474]
[1753271898720,0.88638789,118670.0,118660.0,0.47200217]
[1753271898924,0.88638789,118670.0,118660.0,0.46357474]
[1753271900036,0.88638789,118670.0,118660.0,0.47200217]
[1753271900460,0.88638789,118670.0,118660.0,0.46357474]
[1753271901209,0.88638789,118670.0,118660.0,0.47200217]
[1753271901620,0.88638789,118670.0,118660.0,0.46357474]
[1753271902937,0.88638789,118670.0,118660.0,0.47200217]
[1753271903173,0.88638789,118670.0,118660.0,0.46357474]
[1753271904108,0.88638789,118670.0,118660.0,0.47200217]
[1753271904663,0.88638789,118670.0,118660.0,0.46357474]
[1753271904863,0.88638789,118670.0,118660.0,0.64897818]
[1753271905385,0.88638789,118670.0,118660.0,0.64897825]
[1753271906018,0.88638789,118670.0,118660.0,0.65740547]
[1753271906982,0.88638789,118670.0,118660.0,0.64897825]
[1753271907438,0.88638789,118670.0,118660.0,0.64893571]
[1753271908934,0.88638789,118670.0,118660.0,0.35639368]
[1753271909154,0.87796131,118670.0,118660.0,0.64050842]
[1753271909373,0.87796131,118670.0,118660.0,0.68448691]
[1753271909579,0.87796131,118670.0,118660.0,0.66178691]
[1753271909810,0.87796131,118670.0,118660.0,0.65335962]
[1753271910012,0.87796131,118670.0,118660.0,0.66178698]
[1753271910837,0.87796131,118670.0,118660.0,0.67021427]
[1753271913843,0.87796131,118670.0,118660.0,0.68706864]
[1753271914303,0.47796131,118670.0,118660.0,0.70966864]
[1753271914790,0.47796131,118670.0,118660.0,0.70966829]
[1753271915036,0.32627946,118670.0,118660.0,0.70966794]
[1753271915278,0.32627946,118670.0,118660.0,0.70966759]
[1753271915516,0.50324077,118670.0,118660.0,0.70966759]
[1753271916045,0.50324077,118670.0,118660.0,0.70124065]
[1753271916719,0.32627939,118670.0,118660.0,0.70966759]
[1753271917159,0.33470604,118670.0,118660.0,0.70966759]
[1753271920923,0.31785281,118670.0,118660.0,0.70966759]
[1753271921140,0.32627939,118670.0,118660.0,0.70966759]
[1753271924778,0.31785239,118670.0,118660.0,0.70966759]
[1753271925031,0.33470541,118670.0,118660.0,0.70966759]
[1753271926140,0.32627883,118670.0,118660.0,0.70966759]
[1753271926563,0.33470541,118670.0,118660.0,0.70966759]
[1753271927577,0.32627883,118670.0,118660.0,0.70966759]
[1753271927726,0.33470541,118670.0,118660.0,0.70966759]
[1753271928172,0.32627883,118670.0,118660.0,0.70966759]
[1753271928501,0.33470534,118670.0,118660.0,0.70966759]
[1753271928695,0.34313192,118670.0,118660.0,0.70966759]
[1753271930483,0.33470534,118670.0,118660.0,0.70966759]
[1753271931042,0.34313192,118670.0,118660.0,0.70966759]
[1753271932366,0.33470534,118670.0,118660.0,0.70966759]
[1753271932660,0.32627883,118670.0,118660.0,0.70966759]
[1753271932889,0.33470541,118670.0,118660.0,0.70966759]
[1753271933099,0.32627883,118670.0,118660.0,0.70966759]
[1753271933325,0.33470534,118670.0,118660.0,0.70966759]
[1753271934699,0.32627883,118670.0,118660.0,0.70966759]
[1753271935872,0.31785239,118670.0,118660.0,0.70966759]
[1753271936522,0.32627883,118670.0,118660.0,0.70966759]
[1753271938840,0.33470541,118670.0,118660.0,0.70966759]
[1753271939988,0.32627883,118670.0,118660.0,0.70966759]
[1753271941224,0.31785239,118670.0,118660.0,0.70966759]
[1753271941470,0.32627876,118670.0,118660.0,0.70966759]
[1753271942699,0.3347052,118670.0,118660.0,0.70966759]
[1753271942897,0.32627876,118670.0,118660.0,0.70966759]
[1753271943251,0.301,118670.0,118660.0,1.04678255]
[1753271943473,0.151,118670.0,118660.0,1.13125985]
[1753271947726,0.301,118670.0,118660.0,1.13125985]
[1753271948792,0.301,118670.0,118660.0,1.43015985]
[1753271949449,0.301,118670.0,118660.0,1.34568255]
[1753271949703,0.301,118670.0,118660.0,1.02601661]
[1753271951716,0.301,118670.0,118660.0,0.70635067]
[1753271951941,0.301,118670.0,118660.0,1.02601661]
[1753271953253,0.301,118670.0,118660.0,0.78911473]
[1753271953475,0.301,118670.0,118660.0,0.94946333]
[1753271953476,0.32825925,118670.0,118660.0,0.94946333]
[1753271953685,0.52752049,118670.0,118660.0,0.94103639]
[1753271953878,0.55944721,118670.0,118660.0,0.94103639]
[1753271954313,0.39091262,118670.0,118660.0,0.94946333]
[1753271954525,0.4624859,118670.0,118660.0,0.94946333]
[1753271954736,0.4624859,118670.0,118660.0,0.52192333]
[1753271954953,0.4624859,118670.0,118660.0,0.65056333]
[1753271955719,0.4624859,118670.0,118660.0,0.65052082]
[1753271956149,0.63944721,118670.0,118660.0,0.65052082]
[1753271956556,0.63391098,118670.0,118660.0,0.64209388]
[1753271957012,1.03391098,118670.0,118660.0,0.64209388]
[1753271957574,1.03102098,118670.0,118660.0,0.64209388]
[1753271959498,1.03102098,118670.0,118660.0,0.63366687]
[1753271959713,1.02259454,118670.0,118660.0,0.64209402]
[1753271960368,1.02259454,118670.0,118660.0,0.44830594]
[1753271960629,0.36773045,118660.0,118650.0,0.79555701]
[1753271960853,0.39332045,118660.0,118650.0,0.94105287]
[1753271961755,0.39332045,118660.0,118650.0,1.13207874]
[1753271961985,0.39332045,118660.0,118650.0,1.26071874]
[1753271964126,0.39332045,118660.0,118650.0,1.26071888]
[1753271965360,0.39332045,118660.0,118650.0,1.26914674]
[1753271966000,0.36972045,118660.0,118650.0,1.26914674]
[1753271966230,0.36129344,118660.0,118650.0,1.26914674]
[1753271966584,0.36129344,118660.0,118650.0,0.97024674]
[1753271966965,0.36129344,118660.0,118650.0,0.95339095]
[1753271967145,0.37636622,118660.0,118650.0,0.94496295]
[1753271967321,0.36793879,118660.0,118650.0,0.94496295]
[1753271969391,0.34443879,118660.0,118650.0,0.94496295]
[1753271971209,0.36793879,118660.0,118650.0,0.94496295]
[1753271971532,0.34443879,118660.0,118650.0,0.94496295]
[1753271972804,0.34443879,118660.0,118650.0,0.95339095]
[1753271974581,0.34443879,118660.0,118650.0,0.93653488]
[1753271975406,0.34443879,118660.0,118650.0,0.94496295]
[1753271975742,0.32053879,118660.0,118650.0,0.94496295]
[1753271976189,0.32053879,118660.0,118650.0,0.9533911]
[1753271976436,0.34283879,118660.0,118650.0,0.9533911]
[1753271978015,0.32053879,118660.0,118650.0,0.9533911]
[1753271978440,0.32053879,118660.0,118650.0,0.9618191]
[1753271979409,0.32053879,118660.0,118650.0,0.97024703]
[1753271979871,0.32053879,118660.0,118650.0,0.97867489]
[1753271981091,0.33739316,118660.0,118650.0,0.97867446]
[1753271981325,0.33739316,118660.0,118650.0,0.98392404]
[1753271981746,0.16884437,118660.0,118650.0,0.98392404]
[1753271982232,0.16884437,118660.0,118650.0,0.99962404]
[1753271982692,0.17727173,118660.0,118650.0,0.99962404]
[1753271984652,0.16884437,118660.0,118650.0,0.99962404]
[1753271986157,0.34582052,118660.0,118650.0,0.99962404]
[1753271986932,0.17727173,118660.0,118650.0,0.99962404]
[1753271988053,0.16884395,118660.0,118650.0,0.99962404]
[1753271988273,0.17727117,118660.0,118650.0,0.99962404]
[1753271988708,0.17528117,118660.0,118650.0,0.99962404]
[1753271989451,0.16685381,118660.0,118650.0,1.01562404]
[1753271990487,0.15,118660.0,118650.0,1.01562404]
[1753271990719,0.15842694,118660.0,118650.0,1.01562404]
[1753271990920,0.15842687,118660.0,118650.0,1.01562404]
[1753271991125,0.15,118660.0,118650.0,1.01562404]
[1753271991350,0.15842687,118660.0,118650.0,1.01562404]
[1753271992019,0.16685388,118660.0,118650.0,1.01562404]
[1753271992224,0.17528096,118660.0,118650.0,1.01562404]
[1753271993734,0.15842687,118660.0,118650.0,1.01562404]
[1753271993938,0.16685388,118660.0,118650.0,1.01562404]
[1753271994094,0.15842687,118660.0,118650.0,1.01562404]
[1753271994309,0.16685381,118660.0,118650.0,1.01562404]
[1753271994557,0.17528089,118660.0,118650.0,1.01562404]
[1753271994758,0.16685381,118660.0,118650.0,1.01562404]
[1753271995174,0.17528082,118660.0,118650.0,1.01562404]
[1753271996638,0.15842687,118660.0,118650.0,1.01562404]
[1753271997664,0.16685381,118660.0,118650.0,1.01562404]
[1753271998444,0.18370818,118660.0,118650.0,1.01562404]
[1753271998662,0.18370811,118660.0,118650.0,1.01562404]
[1753271999181,0.17528089,118660.0,118650.0,1.01562404]
[1753272000497,0.17528089,118660.0,118650.0,0.99962404]
[1753272001390,0.18370811,118660.0,118650.0,0.99962404]
[1753272001597,0.17528089,118660.0,118650.0,0.99962404]
[1753272002003,0.18370804,118660.0,118650.0,0.99962404]
[1753272002538,0.19213533,118660.0,118650.0,0.99954404]
[1753272002751,0.19413533,118660.0,118650.0,0.99954404]
[1753272003199,0.19413526,118660.0,118650.0,0.99954404]
[1753272003413,0.36268447,118660.0,118650.0,0.87098404]
[1753272003624,0.35425788,118660.0,118650.0,0.98268867]
[1753272003836,0.34583073,118660.0,118650.0,0.96698867]
[1753272004039,0.33740351,118660.0,118650.0,0.95331095]
[1753272004281,0.33740351,118660.0,118650.0,0.82475095]
[1753272004452,0.33740351,118660.0,118650.0,0.95331095]
[1753272004702,0.33740351,118660.0,118650.0,0.96173888]
[1753272004911,0.33740351,118660.0,118650.0,0.9701666]
[1753272005126,0.33740351,118660.0,118650.0,0.96173888]
[1753272005522,0.33740351,118660.0,118650.0,0.9751866]
[1753272005734,0.33740351,118660.0,118650.0,0.8466266]
[1753272005936,0.33740351,118660.0,118650.0,0.96675888]
[1753272006148,0.33740351,118660.0,118650.0,0.97518674]
[1753272006368,0.33740351,118660.0,118650.0,0.98361453]
[1753272006790,0.33740351,118660.0,118650.0,0.95833095]
[1753272006984,0.33740351,118660.0,118650.0,0.31057115]
[1753272007196,0.33740351,118660.0,118650.0,0.9583311]
[1753272008872,0.33740351,118660.0,118650.0,0.9667591]
[1753272009276,0.33740351,118660.0,118650.0,0.31899922]
[1753272009510,0.33740351,118660.0,118650.0,0.9583311]
[1753272010569,1.21461295,118670.0,118660.0,0.48075502]
[1753272010814,1.21605295,118670.0,118660.0,0.60931502]
[1753272011244,1.68661889,118670.0,118660.0,0.28964908]
[1753272011452,6.44867054,118670.0,118660.0,0.28964908]
[1753272012289,6.44967054,118670.0,118660.0,0.16108908]
[1753272012558,6.44867054,118670.0,118660.0,0.16108908]
[1753272012781,6.44967054,118670.0,118660.0,0.28964908]
[1753272012995,6.76933648,118670.0,118660.0,0.16108908]
[1753272013229,6.76933648,118670.0,118660.0,0.28964908]
[1753272013483,6.44967054,118670.0,118660.0,0.28964908]
[1753272014950,1.39967054,118670.0,118660.0,0.28964908]
[1753272015248,6.44967054,118670.0,118660.0,0.28964908]
[1753272015450,7.13668118,118670.0,118660.0,0.28964908]
[1753272015679,6.81701524,118670.0,118660.0,0.28964908]
[1753272015886,7.13668118,118670.0,118660.0,0.28964908]